fUST/lending_fUST_20250118
["ID","MTS","AMOUNT","RATE_DAILY","PERIOD"]
[349441553,1737183033073,-647.16544624,0.00018899,2]
[349441555,1737183033082,-500.0,0.00018899,2]
[349441557,1737183033092,-500.0,0.00018899,2]
[349441559,1737183033102,-500.0,0.00018899,2]
[349441561,1737183033111,-500.0,0.00018899,2]
[349441563,1737183033121,-500.0,0.00018899,2]
[349441565,1737183033130,-646.28619307,0.00018899,2]
[349441567,1737183033139,-500.0,0.00018899,2]
[349441569,1737183033149,-500.0,0.00018899,2]
[349441571,1737183033159,-500.0,0.00018899,2]
[349441573,1737183033169,-500.0,0.00018899,2]
[349441575,1737183033178,-500.0,0.00018899,2]
[349441577,1737183033188,-500.0,0.00018899,2]
[349441579,1737183033197,-500.0,0.00018899,2]
[349441581,1737183033207,-500.0,0.00018899,2]
[349441584,1737183033216,-500.0,0.00018899,2]
[349441586,1737183033227,-500.0,0.00018899,2]
[349441588,1737183033238,-500.0,0.00018899,2]
[349441590,1737183033248,-500.0,0.00018899,2]
[349441592,1737183033259,-500.0,0.00018899,2]
[349441594,1737183033268,-475.42613514,0.00018899,2]
[349441596,1737183033278,-500.0,0.00018899,2]
[349441598,1737183033288,-500.0,0.00018899,2]
[349441600,1737183033298,-500.0,0.00018899,2]
[349441602,1737183033308,-241.90896718,0.00018899,2]
[349441604,1737183033317,-500.0,0.00018899,2]
[349441606,1737183033327,-500.0,0.00018899,2]
[349441608,1737183033337,-500.0,0.00018899,2]
[349441610,1737183033347,-113524.16964271,0.000189,2]
[349441612,1737183033356,-151.0,0.000189,2]
[349441614,1737183033366,-151.0,0.000189,2]
[349441616,1737183033375,-151.0,0.000189,2]
[349441618,1737183033384,-151.0,0.000189,2]
[349441620,1737183033394,-344.654342,0.000189,2]
[349441622,1737183033403,-344.654342,0.000189,2]
[349441624,1737183033412,-151.0,0.000189,2]
[349441626,1737183033422,-151.0,0.000189,2]
[349441628,1737183033432,-151.0,0.000189,2]
[349441630,1737183033441,-675.147199,0.000189,2]
[349441632,1737183033450,-675.147199,0.000189,2]
[349441634,1737183033459,-151.0,0.000189,2]
[349441637,1737183033470,-151.0,0.000189,2]
[349441639,1737183033480,-184.687052,0.000189,2]
[349441641,1737183033489,-151.0,0.000189,2]
[349441643,1737183033499,-151.0,0.000189,2]
[349441645,1737183033508,-1981.140585,0.000189,2]
[349441647,1737183033517,-151.0,0.000189,2]
[349441649,1737183033527,-793.29809296,0.000189,2]
[349441651,1737183033536,-1981.140585,0.000189,2]
[349441653,1737183033546,-298.962032,0.000189,2]
[349441655,1737183033556,-298.962032,0.000189,2]
[349441657,1737183033565,-151.0,0.000189,2]
[349441659,1737183033575,-151.0,0.000189,2]
[349441661,1737183033584,-151.0,0.000189,2]
[349441663,1737183033593,-300.89996,0.000189,2]
[349441665,1737183033603,-300.89996,0.000189,2]
[349441667,1737183033612,-585.416636,0.000189,2]
[349441669,1737183033620,-585.416636,0.000189,2]
[349441671,1737183033630,-223.154255,0.000189,2]
[349441673,1737183033640,-223.154255,0.000189,2]
[349441675,1737183033649,-1999.99,0.00018904,7]
[349441677,1737183033659,-823.4592142,0.00018933,2]
[349441679,1737183033669,-702.02412378,0.00019,3]
[349441681,1737183033684,-500.0,0.00019178,7]
[349441683,1737183033694,-500.0,0.00019178,2]
[349441685,1737183033704,-500.0,0.00019178,2]
[349441687,1737183033715,-500.0,0.00019178,2]
[349441689,1737183033725,-633.70153362,0.00019178,2]
[349441692,1737183033735,-182.788124,0.00019178,2]
[349441694,1737183033745,-405.0734014,0.00019178,11]
[349441696,1737183033756,-500.0,0.0001944,2]
[349441698,1737183033766,-1655.95954907,0.00019478,2]
[349441700,1737183033776,-151.0,0.00019553,2]
[349441702,1737183033786,-151.0,0.00019553,2]
[349441704,1737183033795,-500.0,0.00019553,2]
[349441706,1737183033805,-500.0,0.00019553,2]
[349441708,1737183033814,-500.0,0.00019553,2]
[349441710,1737183033823,-500.0,0.00019553,2]
[349441712,1737183033833,-500.0,0.00019553,2]
[349441714,1737183033843,-467.532371,0.00019553,2]
[349441716,1737183033852,-151.0,0.00019553,2]
[349441718,1737183033862,-151.0,0.00019553,2]
[349441720,1737183033872,-151.0,0.00019553,2]
[349441722,1737183033881,-151.0,0.00019553,2]
[349441724,1737183033891,-151.0,0.00019553,2]
[349441726,1737183033900,-151.0,0.00019553,2]
[349441728,1737183033910,-151.0,0.00019553,2]
[349441730,1737183033919,-675.147199,0.00019553,2]
[349441732,1737183033929,-675.147199,0.00019553,2]
[349441734,1737183033939,-151.0,0.00019553,2]
[349441736,1737183033948,-151.0,0.00019553,2]
[349441738,1737183033957,-151.0,0.00019553,2]
[349441740,1737183033967,-151.0,0.00019553,2]
[349441742,1737183033978,-1981.140585,0.00019553,2]
[349441744,1737183033988,-1981.140585,0.00019553,2]
[349441746,1737183033997,-298.962032,0.00019553,2]
[349441748,1737183034007,-298.962032,0.00019553,2]
[349441750,1737183034016,-151.0,0.00019553,2]
[349441752,1737183034026,-300.89996,0.00019553,2]
[349441754,1737183034036,-300.89996,0.00019553,2]
[349441756,1737183034045,-585.416636,0.00019553,2]
[349441771,1737183034169,-585.416636,0.00019553,2]
[349441773,1737183034179,-223.154255,0.00019553,2]
[349441775,1737183034189,-223.154255,0.00019553,2]
[349441777,1737183034198,-151.0,0.00019554,2]
[349441779,1737183034207,-344.654342,0.00019554,2]
[349441781,1737183034217,-344.654342,0.00019554,2]
[349441783,1737183034227,-159.13077301,0.00019556,2]
[349441785,1737183034236,-154.822,0.00019556,2]
[349441786,1737183034245,-500.0,0.00019863,9]
[349441787,1737183034254,-500.0,0.00019987,2]
[349441788,1737183034264,-151.0,0.00020021,2]
[349441789,1737183034273,-151.0,0.00020021,2]
[349441790,1737183034282,-1591.94714285,0.00020022,2]
[349441791,1737183034290,-151.0,0.00020099,2]
[349441792,1737183034299,-151.0,0.000201,2]
[349441793,1737183034308,-155.070074,0.000201,2]
[349441794,1737183034318,-151.0,0.000201,2]
[349441795,1737183034326,-344.654342,0.000201,2]
[349441796,1737183034336,-344.654342,0.000201,2]
[349441797,1737183034345,-151.0,0.000201,2]
[349441798,1737183034354,-151.0,0.000201,2]
[349441799,1737183034363,-157.431518,0.000201,2]
[349441800,1737183034372,-151.0,0.000201,2]
[349441801,1737183034381,-151.0,0.000201,2]
[349441802,1737183034390,-151.0,0.000201,2]
[349441803,1737183034398,-151.0,0.000201,2]
[349441804,1737183034407,-675.147199,0.000201,2]
[349441806,1737183034416,-675.147199,0.000201,2]
[349441808,1737183034427,-151.0,0.000201,2]
[349441810,1737183034436,-151.0,0.000201,2]
[349441812,1737183034445,-151.0,0.000201,2]
[349441814,1737183034455,-1981.140585,0.000201,2]
[349441816,1737183034465,-1981.140585,0.000201,2]
[349441818,1737183034475,-298.962032,0.000201,2]
[349441820,1737183034484,-298.962032,0.000201,2]
[349441822,1737183034494,-151.0,0.000201,2]
[349441823,1737183034503,-300.89996,0.000201,2]
[349441825,1737183034512,-300.89996,0.000201,2]
[349441826,1737183034522,-585.416636,0.000201,2]
[349441828,1737183034533,-585.416636,0.000201,2]
[349441830,1737183034543,-223.154255,0.000201,2]
[349441832,1737183034552,-223.154255,0.000201,2]
[349441834,1737183034561,-1863.25569056,0.000201,2]
[349441836,1737183034571,-1863.25569032,0.000201,2]
[349441838,1737183034580,-1863.25569032,0.000201,2]
[349441840,1737183034589,-1863.25569032,0.000201,2]
[349441842,1737183034598,-1863.25569032,0.000201,2]
[349441844,1737183034607,-1863.25569032,0.000201,2]
[349441846,1737183034616,-1863.25569032,0.000201,2]
[349441848,1737183034625,-1863.25569032,0.00020107,2]
[349441850,1737183034634,-151.0,0.00020107,2]
[349441852,1737183034643,-214.43047,0.00020107,2]
[349441854,1737183034653,-1655.95954907,0.00020258,2]
[349441856,1737183034662,-151.0,0.00020279,2]
[349441858,1737183034673,-675.147199,0.00020279,2]
[349441860,1737183034684,-675.147199,0.00020279,2]
[349441862,1737183034693,-151.0,0.00020279,2]
[349441864,1737183034702,-1981.140585,0.00020279,2]
[349441866,1737183034711,-1981.140585,0.00020279,2]
[349441868,1737183034722,-300.89996,0.00020279,2]
[349441870,1737183034732,-300.89996,0.00020279,2]
[349441872,1737183034741,-585.416636,0.00020279,2]
[349441874,1737183034752,-585.416636,0.00020279,2]
[349441876,1737183034762,-223.154255,0.00020279,2]
[349441878,1737183034771,-223.154255,0.00020279,2]
[349441880,1737183034780,-1863.25569032,0.00020279,2]
[349441882,1737183034790,-151.0,0.00020308,2]
[349441884,1737183034799,-151.0,0.00020308,2]
[349441886,1737183034809,-1863.25569032,0.00020452,2]
[349441888,1737183034819,-151.0,0.00020452,2]
[349441890,1737183034828,-344.654342,0.00020452,2]
[349441892,1737183034837,-344.654342,0.00020452,2]
[349441894,1737183034846,-151.0,0.00020452,2]
[349441896,1737183034855,-151.0,0.00020452,2]
[349441898,1737183034864,-151.0,0.00020452,2]
[349441900,1737183034874,-500.0,0.00020547,11]
[349441902,1737183034883,-151.153845,0.00020548,2]
[349441904,1737183034892,-298.962032,0.00020624,2]
[349441906,1737183034901,-298.962032,0.00020624,2]
[349441907,1737183034910,-151.0,0.00020624,2]
[349441909,1737183034919,-1863.25569032,0.00020624,2]
[349441911,1737183034929,-1863.25569032,0.00020797,2]
[349441914,1737183034939,-151.0,0.0002083,2]
[349441915,1737183034950,-1981.140585,0.00020911,2]
[349441917,1737183034959,-1981.140585,0.00020911,2]
[349441919,1737183034970,-300.89996,0.00020911,2]
[349441921,1737183034980,-300.89996,0.00020911,2]
[349441923,1737183034994,-585.416636,0.00020911,2]
[349441925,1737183035008,-585.416636,0.00020911,2]
[349441927,1737183035017,-223.154255,0.00020911,2]
[349441929,1737183035026,-223.154255,0.00020911,2]
[349441931,1737183035035,-1863.25569032,0.00020969,2]
[349441933,1737183035044,-344.654342,0.00020969,2]
[349441935,1737183035054,-344.654342,0.00020969,2]
[349441937,1737183035063,-151.0,0.00020969,2]
[349441939,1737183035072,-151.0,0.00020969,2]
[349441941,1737183035081,-153.296423,0.00020969,2]
[349441943,1737183035090,-151.0,0.00020969,2]
[349441945,1737183035099,-675.147199,0.00020969,2]
[349441947,1737183035109,-675.147199,0.00020969,2]
[349441949,1737183035119,-151.0,0.00020969,2]
[349441951,1737183035129,-151.0,0.00020969,2]
[349441953,1737183035138,-151.0,0.00020969,2]
[349441955,1737183035147,-1655.95954907,0.00021037,2]
[349441957,1737183035157,-151.0,0.00021062,2]
[349441959,1737183035166,-1863.25569032,0.00021141,2]
[349441961,1737183035176,-151.0,0.00021177,2]
[349441963,1737183035185,-344.654342,0.00021298,2]
[349441965,1737183035194,-344.654342,0.00021298,2]
[349441967,1737183035204,-1981.140585,0.00021298,2]
[349441969,1737183035213,-1981.140585,0.00021298,2]
[349441971,1737183035223,-300.89996,0.00021298,2]
[349441973,1737183035232,-300.89996,0.00021298,2]
[349441975,1737183035241,-585.416636,0.00021298,2]
[349441977,1737183035250,-585.416636,0.00021298,2]
[349441979,1737183035260,-223.154255,0.00021298,2]
[349441981,1737183035269,-223.154255,0.00021298,2]
[349441983,1737183035279,-1863.25569032,0.00021314,2]
[349441985,1737183035290,-151.0,0.00021314,2]
[349441987,1737183035299,-298.962032,0.00021314,2]
[349441989,1737183035308,-298.962032,0.00021314,2]
[349441991,1737183035318,-151.0,0.00021314,2]
[349441993,1737183035327,-675.147199,0.0002142,2]
[349441995,1737183035337,-675.147199,0.0002142,2]
[349441997,1737183035346,-151.0,0.0002142,2]
[349441999,1737183035355,-151.0,0.00021428,2]
[349442001,1737183035363,-151.0,0.00021428,2]
[349442003,1737183035372,-151.0,0.00021429,2]
[349442005,1737183035381,-151.0,0.00021429,2]
[349442007,1737183035389,-151.0,0.00021486,2]
[349442009,1737183035397,-344.654342,0.00021486,2]
[349442011,1737183035406,-344.654342,0.00021486,2]
[349442013,1737183035415,-1863.25569032,0.00021486,2]
[349442015,1737183035423,-1863.25569032,0.00021659,3]
[349442017,1737183035432,-500.0,0.00021694,2]
[349442019,1737183035441,-1601.377478,0.0002174,2]
[349442021,1737183035450,-1981.140585,0.0002174,2]
[349442023,1737183035458,-1981.140585,0.0002174,2]
[349442025,1737183035467,-151.0,0.000218,3]
[349442027,1737183035475,-344.654342,0.00021817,2]
[349442029,1737183035484,-344.654342,0.00021817,2]
[349442031,1737183035493,-151.0,0.00021817,2]
[349442033,1737183035502,-1655.95954907,0.00021817,2]
[349442035,1737183035511,-300.89996,0.00021817,2]
[349442037,1737183035519,-300.89996,0.00021817,2]
[349442039,1737183035528,-585.416636,0.00021817,2]
[349442041,1737183035536,-585.416636,0.00021817,2]
[349442043,1737183035546,-223.154255,0.00021817,2]
[349442045,1737183035555,-223.154255,0.00021817,2]
[349442046,1737183035565,-189.143451,0.00021831,2]
[349442049,1737183035575,-675.147199,0.00021831,2]
[349442050,1737183035585,-675.147199,0.00021831,2]
[349442053,1737183035594,-151.0,0.00021831,2]
[349442055,1737183035604,-298.962032,0.00021831,2]
[349442057,1737183035614,-298.962032,0.00021831,2]
[349442059,1737183035624,-151.0,0.00021831,2]
[349442061,1737183035634,-1863.25569032,0.00021831,3]
[349442063,1737183035643,-151.0,0.00021889,2]
[349442065,1737183035653,-344.654342,0.00021906,2]
[349442067,1737183035662,-344.654342,0.00021906,2]
[349442069,1737183035675,-216.29109549,0.00021916,2]
[349442071,1737183035685,-500.0,0.00021916,2]
[349442073,1737183035695,-352.49717296,0.00021916,2]
[349442075,1737183035704,-501.02021842,0.00021917,14]
[349442077,1737183035715,-500.66176876,0.00021917,3]
[349442079,1737183035725,-500.0,0.00021917,3]
[349442081,1737183035735,-500.0,0.00021917,3]
[349442083,1737183035744,-500.0,0.00021917,3]
[349442085,1737183035757,-500.0,0.00021917,3]
[349442087,1737183035767,-500.0,0.00021917,3]
[349442089,1737183035776,-500.0,0.00021917,3]
[349442091,1737183035787,-500.0,0.00021917,3]
[349442093,1737183035797,-583.89830634,0.00021917,3]
[349442096,1737183035807,-500.0,0.00021917,3]
[349442098,1737183035816,-500.0,0.00021917,3]
[349442099,1737183035826,-500.0,0.00021917,3]
[349442101,1737183035836,-3000.0,0.00021917,30]
[349442103,1737183035846,-508.04280015,0.00021917,3]
[349442106,1737183035856,-500.0,0.00021917,3]
[349442108,1737183035866,-500.0,0.00021917,3]
[349442110,1737183035875,-500.0,0.00021917,3]
[349442112,1737183035885,-151.0,0.00021917,2]
[349442114,1737183035894,-194.149411,0.00021917,2]
[349442116,1737183035904,-500.0,0.00021917,3]
[349442117,1737183035913,-500.0,0.00021917,3]
[349442120,1737183035924,-500.0,0.00021917,3]
[349442121,1737183035934,-500.0,0.00021917,3]
[349442124,1737183035944,-500.0,0.00021917,3]
[349442126,1737183035954,-500.0,0.00021917,3]
[349442128,1737183035964,-500.0,0.00021917,3]
[349442130,1737183035974,-500.0,0.00021917,3]
[349442132,1737183035987,-547.45407261,0.00021917,3]
[349442134,1737183035997,-500.0,0.00021917,3]
[349442136,1737183036007,-500.0,0.00021917,3]
[349442138,1737183036017,-500.0,0.00021917,3]
[349442139,1737183036027,-403.688225,0.00021917,3]
[349442141,1737183036036,-500.0,0.00021917,3]
[349442143,1737183036046,-500.0,0.00021917,3]
[349442145,1737183036055,-382.63270114,0.00021917,3]
[349442147,1737183036065,-500.0,0.00021917,3]
[349442149,1737183036075,-500.0,0.00021917,3]
[349442151,1737183036085,-500.0,0.00021917,3]
[349442153,1737183036095,-500.0,0.00021917,3]
[349442155,1737183036104,-340.27863276,0.00021917,3]
[349442157,1737183036113,-500.0,0.00021917,3]
[349442159,1737183036122,-500.0,0.00021917,3]
[349442161,1737183036131,-500.0,0.00021917,3]
[349442163,1737183036141,-500.0,0.00021917,3]
[349442165,1737183036150,-500.0,0.00021917,3]
[349442167,1737183036159,-500.0,0.00021917,3]
[349442169,1737183036168,-500.0,0.00021917,3]
[349442171,1737183036179,-500.0,0.00021917,3]
[349442173,1737183036188,-500.0,0.00021917,3]
[349442175,1737183036197,-579.87,0.00021917,3]
[349442177,1737183036206,-502.21942636,0.00021917,3]
[349442179,1737183036216,-500.0,0.00021917,3]
[349442181,1737183036225,-500.0,0.00021917,3]
[349442183,1737183036234,-500.0,0.00021917,3]
[349442185,1737183036243,-500.0,0.00021917,3]
[349442187,1737183036251,-500.0,0.00021917,3]
[349442189,1737183036259,-500.0,0.00021917,3]
[349442191,1737183036269,-500.0,0.00021917,3]
[349442193,1737183036278,-344.654342,0.00021917,2]
[349442195,1737183036287,-344.654342,0.00021917,2]
[349442197,1737183036297,-500.0,0.00021917,3]
[349442199,1737183036306,-500.0,0.00021917,3]
[349442201,1737183036315,-500.0,0.00021917,3]
[349442203,1737183036325,-500.0,0.00021917,3]
[349442205,1737183036335,-394.57015836,0.00021917,3]
[349442207,1737183036345,-500.0,0.00021917,3]
[349442210,1737183036355,-500.0,0.00021917,3]
[349442212,1737183036364,-500.0,0.00021917,3]
[349442214,1737183036374,-500.0,0.00021917,3]
[349442216,1737183036383,-500.0,0.00021917,3]
[349442218,1737183036392,-500.0,0.00021917,3]
[349442219,1737183036402,-500.0,0.00021917,3]
[349442221,1737183036413,-500.0,0.00021917,3]
[349442224,1737183036424,-500.0,0.00021917,3]
[349442225,1737183036436,-500.0,0.00021917,3]
[349442227,1737183036446,-500.0,0.00021917,3]
[349442230,1737183036457,-500.0,0.00021917,3]
[349442232,1737183036469,-500.0,0.00021917,3]
[349442234,1737183036478,-500.0,0.00021917,3]
[349442235,1737183036488,-500.0,0.00021917,3]
[349442238,1737183036498,-500.0,0.00021917,3]
[349442240,1737183036507,-500.0,0.00021917,3]
[349442241,1737183036516,-500.0,0.00021917,3]
[349442243,1737183036525,-500.0,0.00021917,3]
[349442245,1737183036543,-500.0,0.00021917,3]
[349442248,1737183036553,-500.0,0.00021917,3]
[349442249,1737183036563,-500.0,0.00021917,3]
[349442252,1737183036572,-500.0,0.00021917,3]
[349442253,1737183036581,-500.0,0.00021917,3]
[349442256,1737183036591,-500.0,0.00021917,3]
[349442257,1737183036600,-500.0,0.00021917,3]
[349442259,1737183036610,-500.0,0.00021917,3]
[349442262,1737183036619,-500.0,0.00021917,3]
[349442263,1737183036629,-500.0,0.00021917,3]
[349442266,1737183036638,-500.0,0.00021917,3]
[349442267,1737183036649,-500.0,0.00021917,3]
[349442269,1737183036659,-500.0,0.00021917,3]
[349442272,1737183036670,-500.0,0.00021917,3]
[349442283,1737183036770,-500.0,0.00021917,3]
[349442285,1737183036780,-500.0,0.00021917,3]
[349442287,1737183036789,-500.0,0.00021917,3]
[349442289,1737183036799,-500.0,0.00021917,3]
[349442291,1737183036808,-500.0,0.00021917,3]
[349442293,1737183036817,-500.0,0.00021917,3]
[349442295,1737183036827,-500.0,0.00021917,3]
[349442297,1737183036836,-500.0,0.00021917,3]
[349442299,1737183036845,-500.0,0.00021917,3]
[349442301,1737183036854,-500.0,0.00021917,3]
[349442303,1737183036864,-500.0,0.00021917,3]
[349442305,1737183036873,-500.0,0.00021917,3]
[349442307,1737183036883,-500.0,0.00021917,2]
[349442309,1737183036892,-500.0,0.00021917,3]
[349442311,1737183036902,-500.0,0.00021917,3]
[349442313,1737183036912,-500.0,0.00021917,3]
[349442315,1737183036921,-500.0,0.00021917,3]
[349442317,1737183036930,-500.0,0.00021917,3]
[349442319,1737183036940,-312.10639204,0.00021917,3]
[349442321,1737183036949,-500.0,0.00021917,3]
[349442323,1737183036958,-500.0,0.00021917,3]
[349442325,1737183036968,-500.0,0.00021917,3]
[349442327,1737183036978,-500.0,0.00021917,3]
[349442329,1737183036987,-1601.377478,0.00021917,2]
[349442331,1737183036997,-1601.377478,0.00021917,2]
[349442333,1737183037007,-4797.16,0.00021917,3]
[349442335,1737183037016,-1601.377469,0.00021917,2]
[349442337,1737183037025,-500.0,0.00021917,3]
[349442339,1737183037035,-500.0,0.00021917,3]
[349442341,1737183037044,-515.81390265,0.00021917,3]
[349442343,1737183037053,-500.0,0.00021917,3]
[349442345,1737183037063,-500.0,0.00021917,3]
[349442348,1737183037073,-675.147199,0.00021917,2]
[349442350,1737183037083,-675.147199,0.00021917,2]
[349442351,1737183037093,-675.147199,0.00021917,2]
[349442353,1737183037103,-675.147199,0.00021917,2]
[349442356,1737183037113,-500.0,0.00021917,3]
[349442357,1737183037123,-675.147199,0.00021917,2]
[349442359,1737183037133,-675.147192,0.00021917,2]
[349442361,1737183037143,-500.0,0.00021917,3]
[349442362,1737183037152,-500.0,0.00021917,3]
[349442363,1737183037162,-500.0,0.00021917,3]
[349442364,1737183037177,-500.0,0.00021917,3]
[349442365,1737183037186,-500.0,0.00021917,3]
[349442366,1737183037195,-500.0,0.00021917,3]
[349442367,1737183037204,-500.0,0.00021917,3]
[349442368,1737183037213,-151.0,0.00021917,2]
[349442369,1737183037223,-151.0,0.00021917,2]
[349442370,1737183037232,-151.0,0.00021917,2]
[349442371,1737183037241,-500.0,0.00021917,3]
[349442372,1737183037250,-500.0,0.00021917,3]
[349442373,1737183037259,-500.0,0.00021917,3]
[349442374,1737183037268,-500.0,0.00021917,3]
[349442375,1737183037278,-500.0,0.00021917,3]
[349442376,1737183037287,-500.0,0.00021917,3]
[349442377,1737183037296,-500.0,0.00021917,3]
[349442378,1737183037306,-500.0,0.00021917,3]
[349442379,1737183037316,-500.0,0.00021917,3]
[349442380,1737183037325,-500.0,0.00021917,3]
[349442381,1737183037335,-449.36667317,0.00021917,3]
[349442382,1737183037345,-500.0,0.00021917,3]
[349442383,1737183037358,-193.817208,0.00021917,2]
[349442384,1737183037367,-500.0,0.00021917,3]
[349442385,1737183037377,-500.0,0.00021917,3]
[349442386,1737183037386,-500.0,0.00021917,3]
[349442387,1737183037396,-500.0,0.00021917,3]
[349442388,1737183037406,-442.94564879,0.00021917,3]
[349442389,1737183037415,-603.86688662,0.00021917,3]
[349442390,1737183037424,-500.0,0.00021917,3]
[349442391,1737183037434,-500.0,0.00021917,3]
[349442392,1737183037445,-500.0,0.00021917,3]
[349442393,1737183037454,-500.0,0.00021917,3]
[349442394,1737183037463,-500.0,0.00021917,3]
[349442395,1737183037473,-500.0,0.00021917,3]
[349442396,1737183037483,-500.0,0.00021917,3]
[349442398,1737183037493,-505.86535425,0.00021917,3]
[349442399,1737183037502,-6645.46,0.00021917,3]
[349442400,1737183037511,-500.0,0.00021917,3]
[349442401,1737183037520,-500.0,0.00021917,3]
[349442402,1737183037530,-500.0,0.00021917,3]
[349442404,1737183037539,-599.73,0.00021917,3]
[349442406,1737183037550,-500.0,0.00021917,3]
[349442408,1737183037559,-1453.66,0.00021917,3]
[349442410,1737183037568,-255.99596333,0.00021917,3]
[349442412,1737183037578,-500.0,0.00021917,3]
[349442413,1737183037587,-500.0,0.00021917,3]
[349442414,1737183037596,-2447.45,0.00021917,3]
[349442415,1737183037605,-500.0,0.00021917,3]
[349442416,1737183037615,-500.0,0.00021917,3]
[349442417,1737183037624,-500.0,0.00021917,3]
[349442418,1737183037633,-1981.140585,0.00021917,2]
[349442419,1737183037642,-500.0,0.00021917,3]
[349442420,1737183037652,-1981.140585,0.00021917,2]
[349442421,1737183037661,-489.02637761,0.00021917,3]
[349442422,1737183037674,-1981.140585,0.00021917,2]
[349442423,1737183037684,-500.0,0.00021917,3]
[349442425,1737183037694,-1981.140585,0.00021917,2]
[349442427,1737183037703,-1981.140585,0.00021917,2]
[349442429,1737183037713,-1981.1405772,0.00021917,2]
[349442431,1737183037723,-500.0,0.00021917,3]
[349442433,1737183037732,-804.04,0.00021917,3]
[349442435,1737183037742,-500.0,0.00021917,3]
[349442437,1737183037753,-500.0,0.00021917,3]
[349442439,1737183037762,-500.0,0.00021917,3]
[349442441,1737183037771,-500.0,0.00021917,3]
[349442443,1737183037781,-564.49,0.00021917,3]
[349442445,1737183037790,-500.0,0.00021917,3]
[349442447,1737183037800,-500.0,0.00021917,3]
[349442449,1737183037809,-414.4185829,0.00021917,3]
[349442451,1737183037819,-500.0,0.00021917,3]
[349442453,1737183037828,-500.0,0.00021917,3]
[349442455,1737183037837,-500.0,0.00021917,3]
[349442457,1737183037846,-500.36756275,0.00021917,3]
[349442459,1737183037855,-500.0,0.00021917,3]
[349442461,1737183037865,-500.0,0.00021917,3]
[349442463,1737183037874,-676.93,0.00021917,3]
[349442465,1737183037883,-298.962032,0.00021917,2]
[349442467,1737183037893,-298.962032,0.00021917,2]
[349442469,1737183037902,-298.962032,0.00021917,2]
[349442471,1737183037911,-500.0,0.00021917,3]
[349442473,1737183037920,-500.0,0.00021917,3]
[349442475,1737183037929,-500.0,0.00021917,3]
[349442477,1737183037939,-298.962032,0.00021917,2]
[349442479,1737183037948,-298.962032,0.00021917,2]
[349442481,1737183037957,-298.962033,0.00021917,2]
[349442483,1737183037966,-500.0,0.00021917,3]
[349442485,1737183037976,-532.24,0.00021917,3]
[349442487,1737183037985,-504.36574776,0.00021917,3]
[349442489,1737183037994,-500.0,0.00021917,3]
[349442491,1737183038003,-500.0,0.00021917,3]
[349442493,1737183038012,-398.23858735,0.00021917,3]
[349442495,1737183038022,-500.0,0.00021917,3]
[349442497,1737183038030,-500.0,0.00021917,3]
[349442499,1737183038040,-500.0,0.00021917,3]
[349442501,1737183038048,-151.0,0.00021917,2]
[349442503,1737183038057,-731.1,0.00021917,3]
[349442505,1737183038066,-210.580246,0.00021917,2]